Cogmind - Beta 13 @@@ ROGUE MODE // 2024.04.11 @ 17:10:13 Player: ILikeVoltron Result: Destroyed by 3B-FX3(R) with Subdweller Machine Gun Performance ------------- Evolutions (0) 0 Regions Visited (2) 400 Robots Destroyed (18) 90 Value Destroyed (449) 449 Prototype IDs (0) 0 Alien Tech Used (0) 0 Bonus (-38) -38 TOTAL SCORE: 901 Bonus ------- Friendly Fire -38 Cogmind --------- Core Integrity 0/250 Matter 290/300 Energy 250/250 System Corruption 0% Temperature Cool (0) Movement Treading (160) Location -10/Subcaves Parts ------- > --- POWER (1) -------- Ion Engine > --- PROPULSION (2) --- Spiked Treads > --- UTILITY (2) ------ (None) > --- WEAPON (2) ------- Barrage Gun > --- INVENTORY (5) ---- Light Ion Engine Medium Matter Pod (100) Structural Scanner Seismic Detector Grenade Launcher Peak State ------------ > --- POWER ------------ (None) > --- PROPULSION ------- Spiked Treads Aluminum Leg > --- UTILITY ---------- Scrap Shield > --- WEAPON ----------- Riot Gun Barrage Gun > --- INVENTORY -------- Light Ion Engine Medium Matter Pod Structural Scanner Seismic Detector Grenade Launcher [Rating: 13] Favorites ----------- Power Light Ion Engine Engine Light Ion Engine Propulsion Aluminum Leg Treads Spiked Treads Leg Aluminum Leg Utility Visual Processing Unit Storage Medium Storage Unit Processor Visual Processing Unit Protection Scrap Shield Weapon Light Assault Rifle Energy Gun Spread Laser Ballistic Gun Light Assault Rifle Special Melee Weapon Datajack Build | -11 -10 -10 ------- Run | Yrd Mat Sub Slots Evolved . | . . . Power . | . . . Propulsion . | . . . Utility . | . . . Weapon . | . . . Parts Attached 17 | . 12 5 Power 2 | . 1 1 Engine 2 | . 1 1 Core . | . . . Reactor . | . . . Propulsion 4 | . 3 1 Treads 2 | . 1 1 Leg 2 | . 2 . Wheel . | . . . Hover . | . . . Flight . | . . . Utility 3 | . 2 1 Device . | . . . Storage 1 | . 1 . Processor 1 | . 1 . Hackware . | . . . Protection 1 | . . 1 Artifact . | . . . Weapon 8 | . 6 2 Energy Gun 3 | . 2 1 Energy Cannon . | . . . Ballistic Gun 4 | . 3 1 Ballistic Cannon . | . . . Launcher . | . . . Special Weapon . | . . . Impact Weapon . | . . . Slashing Weapon . | . . . Piercing Weapon . | . . . Special Melee Weapon 1 | . 1 . Unidentified Prototypes . | . . . Parts Lost 5 | . 2 3 Power 2 | . 1 1 Propulsion 1 | . 1 . Utility 1 | . . 1 Weapon 1 | . . 1 Highest Loss Streak 2 | . 2 2 To Critical Strikes . | . . . Average Slot Usage (%) 85 | . 92 72 Engine 7 | . 10 2 Treads 2 | . . 5 Leg 23 | . 27 17 Storage 11 | . 14 7 Processor 9 | . 10 7 Protection 1 | . . 5 Energy Gun 7 | . 5 12 Ballistic Gun 17 | . 19 14 Special Melee Weapon 2 | . 3 . Naked Turns . | . . . Heaviest Build 24 | 11 17 24 Greatest Support 20 | 20 20 20 Greatest Overweight (x) 1 | . 1 1 Average Overweight (x) . | . . . Largest Inventory Capacity 10 | . 10 10 Average Capacity 8 | . 9 7 Most Carried 10 | . 10 10 Average Carried 8 | . 9 7 Final Capacity 10 | 8 10 5 Final Carried 10 | 6 10 5 Class Distribution -------------------- 91% | Mutant 8% | Derelict-Mutant Dominant Class ---------------- Mutant | -10/Materials Mutant | -10/Subcaves Resources | -11 -10 -10 ----------- Run | Yrd Mat Sub Matter Collected 742 | 200 455 87 Remotely . | . . . Salvage Created 653 | . 432 221 Parts 43 | . 29 14 Haulers Intercepted 1 | . 1 . Recyclers Shooed 2 | . 2 . Parts Field Recycled . | . . . Retrieved Matter . | . . . Parts Self-Destructed 8 | . . 8 Prevented . | . . . Kills | -11 -10 -10 ------- Run | Yrd Mat Sub Combat Hostiles Destroyed 13 | . 8 5 Guns 12 | . 7 5 Classes Destroyed 8 | . 7 1 Builder 1 | . 1 . Hauler 1 | . 1 . Recycler 1 | . 1 . Operator 1 | . 1 . Watcher 1 | . 1 . Swarmer 3 | . 3 . Grunt 6 | . 5 1 Subdweller 4 | . . 4 Best Kill Streak 3 | . 3 2 Combat Bots Only 3 | . 3 2 Max Kills in Single Turn 2 | . 1 2 Gunslinging 1 | . . 1 Exploded . | . . . Melee . | . . . Uniques/NPCs Destroyed . | . . . Combat | -11 -10 -10 -------- Run | Yrd Mat Sub Hostile Shots Fired 116 | . 79 37 Missed 37 | . 23 14 Damage Taken 1247 | . 633 614 Core 254 | . 164 90 Absorbed by Shields . | . . . Core Remaining (%) 100 | 100 . . Volleys Fired 75 | . 62 13 Largest 2 | . 2 2 Hottest 93 | . 85 93 Shots Fired 143 | . 120 23 Gun 143 | . 120 23 Cannon . | . . . Launcher . | . . . Special . | . . . Kinetic 100 | . 87 13 Thermal 41 | . 33 8 Explosive . | . . . Electromagnetic 2 | . . 2 Robot Hit Streak 17 | . 17 10 Robot Miss Streak 5 | . 5 2 Penetration Max . | . . . Secondary Targets 2 | . 1 1 Max Gunslinging Chain 1 | . 1 1 Shots Hit Robots 102 | . 80 22 Core Hits 49 | . 31 18 Critical Kills . | . . . Critical Parts Destroyed . | . . . Critical Strikes 1 | . 1 . Burn 1 | . 1 . Melee Attacks 4 | . 4 . Impact . | . . . Slashing . | . . . Piercing . | . . . Sneak Attacks 3 | . 3 . Combat Hostiles . | . . . Follow-up Attacks . | . . . Damage Inflicted 1141 | . 813 328 Guns 1141 | . 813 328 Cannons . | . . . Explosions . | . . . Melee . | . . . Ramming . | . . . Kinetic 674 | . 487 187 Thermal 445 | . 326 119 Explosive . | . . . Electromagnetic 22 | . . 22 Impact . | . . . Slashing . | . . . Piercing . | . . . Highest Corruption . | . . . Average Corruption . | . . . Corruption Purged . | . . . Corruption Blocked . | . . . Overload Shots . | . . . Overflow Damage . | . . . Projectiles . | . . . Explosions . | . . . Melee . | . . . Knockbacks . | . . . Impact . | . . . Kinetic . | . . . Secondary . | . . . Self-Inflicted Damage . | . . . Shots . | . . . Rammed . | . . . Targets Rammed . | . . . Kicked . | . . . Crushed . | . . . Highest Temperature 347 | . 347 311 Average Temperature 135 | . 143 93 Received Heat Transfer 693 | . 276 417 Effects 2 | . 1 1 Energy Bleed 1 | . . 1 Damage (minor) 1 | . 1 . Siege Activations . | . . . Robots Corrupted . | . . . Combat Hostiles . | . . . Parts Fried . | . . . Impact Corruptions . | . . . Robots Melted 1 | . 1 . Combat Hostiles 1 | . 1 . Parts Melted 2 | . 1 1 Heat Transferred 1037 | . 882 155 Parts Sabotaged . | . . . Parts Stolen . | . . . Parts Stripped . | . . . Power Chain Reactions . | . . . Alert | -11 -10 -10 ------- Run | Yrd Mat Sub Peak Influence 264 | . 264 . Initial . | . . . Average 89 | . 89 . Maximum Alert Level 1 | . 1 . Low Security (%) 89 | . 89 . Level 1 10 | . 10 . Level 2 . | . . . Level 3 . | . . . Level 4 . | . . . Level 5 . | . . . High Security . | . . . Max Security . | . . . Squads Dispatched 1 | . 1 . Investigation . | . . . Extermination . | . . . Reinforcement 1 | . 1 . Assault . | . . . Garrison . | . . . Intercept . | . . . Searches Triggered . | . . . Construction Impeded . | . . . Haulers Reinforced . | . . . Active Scanning Responses . | . . . Cargo Convoy Interrupts . | . . . Stealth | -11 -10 -10 --------- Run | Yrd Mat Sub Distress Signals 2 | . 2 . Communications Jammed . | . . . Distress Signals . | . . . Times Spotted 24 | . 17 7 Peak Tracking Total 4 | . 4 3 Tactical Retreats 2 | . 2 . Traps | -11 -10 -10 ------- Run | Yrd Mat Sub Traps Triggered 3 | . . 3 Indirectly . | . . . Trap Hack Attempts . | . . . Triggered . | . . . Disarmed . | . . . Reprogrammed . | . . . Reused . | . . . Traps Extracted . | . . . Installed . | . . . Triggered 1 | . . 1 Machines | -11 -10 -10 ---------- Run | Yrd Mat Sub Machines Disabled . | . . . Max in Single Turn . | . . . Machines Repaired . | . . . Machines Dismantled . | . . . Machines Sabotaged . | . . . Overloaded Fab Kills . | . . . Hacking | -11 -10 -10 --------- Run | Yrd Mat Sub Machines Accessed 8 | . 8 . Terminals 7 | . 7 . Fabricators . | . . . Repair Stations . | . . . Recycling Units 1 | . 1 . Scanalyzers . | . . . Garrison Access . | . . . Total Hacks 20 | . 20 . Successful 8 | . 8 . Failed 12 | . 12 . Catastrophic 3 | . 3 . Database Lockouts . | . . . Manual 10 | . 10 . Terminals 18 | . 18 . Fabricators . | . . . Repair Stations . | . . . Recycling Units 2 | . 2 . Scanalyzers . | . . . Garrison Access . | . . . Terminal Hacks 6 | . 6 . Part Schematic 1 | . 1 . Branch Access Points 1 | . 1 . Terminal Index 1 | . 1 . Locate Traps 2 | . 2 . Zone Layout 1 | . 1 . Fabricator Hacks . | . . . Repair Station Hacks . | . . . Recycling Unit Hacks . | . . . Scanalyzer . | . . . Garrison Access Hacks . | . . . Unauthorized Hacks 2 | . 2 . Terminals 1 | . 1 . Assimilate 1 | . 1 . Fabricators . | . . . Repair Stations . | . . . Recycling Units 1 | . 1 . Recyclers 1 | . 1 . Scanalyzers . | . . . Garrison Access . | . . . Data Cores Recovered . | . . . Used . | . . . Hacking Detections 6 | . 6 . Full Trace Events . | . . . Feedback Events . | . . . Feedback Blocked . | . . . Robot Schematics Acquired . | . . . Robots Built . | . . . Authchips . | . . . Time . | . . . Total Robot Build Rating . | . . . Part Schematics Acquired 1 | . 1 . Parts Built . | . . . Authchips . | . . . Time . | . . . Total Part Build Rating . | . . . Parts Repaired . | . . . Time . | . . . Parts Recycled . | . . . Recycled Matter . | . . . Retrieved Matter . | . . . Retrieved Components . | . . . Parts Scanalyzed . | . . . Part Schematics Acquired . | . . . Parts Damaged . | . . . Bothacking | -11 -10 -10 ------------ Run | Yrd Mat Sub Used RIF Installer . | . . . Robots Hacked 3 | . 3 . Non-combat 3 | . 3 . Combat . | . . . Robot Hacks Applied 4 | . 4 . parse_system 2 | . 2 . no_distress 1 | . 1 . find_recycling 1 | . 1 . Relay Couplers Released . | . . . Fabnet Peak Effective % . | . . . Robots Rewired . | . . . Allies Hacked . | . . . Hacks Repelled . | . . . Allies | -11 -10 -10 -------- Run | Yrd Mat Sub Total Allies 1 | . 1 . Largest Group 1 | . 1 . Highest-Rated Group 10 | . 10 . Highest-Rated Ally 10 | . 10 . Total Orders . | . . . Ally Attacks . | . . . Total Damage . | . . . Kills . | . . . Allies Corrupted . | . . . Allies Melted . | . . . Intel | -11 -10 -10 ------- Run | Yrd Mat Sub Robot Analysis Total . | . . . Derelict Logs Recovered 1 | . . 1 Drone Launches . | . . . Drone Recoveries . | . . . Exploration | -11 -10 -10 ------------- Run | Yrd Mat Sub Turns Passed 1748 | . 1132 616 Spaces Moved 1124 | 1 753 370 Core . | . . . Treads 101 | . 2 99 Legs 1023 | 1 751 271 Wheels . | . . . Hover . | . . . Flight . | . . . Fastest Speed 120 | 120 120 120 Average Speed 130 | 120 120 150 Slowest Speed 260 | 120 190 260 Overloaded Moves . | . . . Propulsion Burnouts . | . . . Robots Hopped . | . . . Cave-ins Triggered . | . . . Exploration Rate (%) 32 | 2 72 24 Regions Visited 2 Branch Regions 1 Pre-discovered Areas 1 | . . 1 Known Exits Taken . | . . . Unknown Exits Taken 2 | 1 1 . Scrap Searched 4 | . . 4 Spaces Dug . | . . . Terrain Destroyed . | . . . Melee . | . . . Projectile . | . . . AOE . | . . . Terrain Rammed . | . . . Walls Destroyed . | . . . Machines Disabled . | . . . Actions | -11 -10 -10 --------- Run | Yrd Mat Sub Total 1277 | . 874 403 Wait 21 | . 12 9 Move 1122 | . 752 370 Hop . | . . . Pick Up 17 | . 17 . Fast Attach 6 | . 2 4 Attach 1 | . 1 . Detach 1 | . . 1 Swap 10 | . 9 1 Drop 20 | . 15 5 Fire 75 | . 62 13 Melee 4 | . 4 . Ram . | . . . Kick . | . . . Crush . | . . . Escape Stasis . | . . . Rewire . | . . . Trap . | . . . Miscellaneous . | . . . Route ------- -11/Scrapyard -10/Materials (discovered 3 exits: *Min x2 / [*Sub]) -10/Subcaves (discovered 1 exit: [*Mat]) History --------- Turn | Location | Event 1 | -11/Scrapyard | Discovered new exit (range 0) 1 | -11/Scrapyard | Entered Materials 45 | -10/Materials | Discovered new exit (range 13) 121 | -10/Materials | Discovered new exit (range 12) 300 | -10/Materials | Build established: Mutant 561 | -10/Materials | Identified exit to Mines 603 | -10/Materials | Core integrity fell below 50% 1122 | -10/Materials | Discovered new exit (range 10) 1133 | -10/Materials | Entered Subcaves 1147 | -10/Subcaves | Shifting Twisted Machinery released Barrage Gun 1148 | -10/Subcaves | Shifting Twisted Machinery released Sub. Machine Gun 1279 | -10/Subcaves | Learned location of Zion (-7) 1279 | -10/Subcaves | Met a Zionite searching for "candidates" 1455 | -10/Subcaves | Discovered new exit (range 11) 1466 | -10/Subcaves | Disturbed a concealed Subdweller 1686 | -10/Subcaves | Core integrity fell below 20% 1723 | -10/Subcaves | Learned location of 1 exit from Materials 1749 | -10/Subcaves | Destroyed by 3B-FX3(R) with Subdweller Machine Gun Last Messages --------------- 01524_ Acquired 10 matter. 01535_ Subatomizers dissect the Sub. Monowheel. 01654_ Triggered Piercing Trap. 01654_ Spikes shoot up from the floor. 01654_ Critical hit (Impale). 01663_ Triggered Piercing Trap. 01663_ Spikes shoot up from the floor. 01663_ Critical hit (Impale). 01663_ Riot Gun destroyed. 01663_ Critical hit (Impale). 01679_ Triggered Piercing Trap. 01679_ Spikes shoot up from the floor. 01679_ Critical hit (Impale). 01683_ Scrap Shield destroyed. 01690_ Destroyed Aluminum Leg. 01692_ G-34 Mercenary destroyed. 01694_ Acquired 12 matter. 01697_ Acquired Ion Engine. 01723_ Acquired derelict log, extracted data. Data stored: Materials exits (x1). Map ----- +----------------------------------------------------+ | ????????????# ##???????????????????????????????? | | ????????????# % #????????????????????????????????? | | ????????????## #????????????????????????????????? | | ?????????#### ##????????????????????????????????? | | ?????????# # % ##???#???? ?????????????????????? | | ????????### # #???? ???????????????????? | | ???????## #???? ?????????????????? | | ???????# # ##???? #?????????????????? | | ???????# ## #????# ###???????????????? | | ???????# ## ##?### ????????????????? | | ???????## #?###?? #????????????????? | | ????????## #?????# #????????????????? | | ????????## ## #?#### #?????????????????? | | ????????# ####### #??????????????????? | | ????????# # # #?# #??????????????????? | | ????????## #??# #??????????????????? | | ?????????# ##?## #???????????????????? | | ????????# ## # #### ###??####???????????? | | ????????##?##### ## ## ?????????? | | ???????????????## ????????? | | ????????????????## ????????? | | ?????????????????## ????????? | | ??????????????????###### ????????? | | ???????????????????????## ????????? | | ????????????????????????# #### #?????????? | | ????????????????????????#@ #???? #?????????? | | ????????????????????????# #????? #??????????? | | ????????????????????????# #??????? #??????????? | | ????????????????????????# #????????"???????????? | | ????????????????????????#R #????????????????????? | | ???????????????????????? #????????????????????? | | ???????????????????????? ????????????????????? | | ???????????????????????? ????????????????????? | | ???????????????????????? ???????????????????? | | ???????????????????????? ???????????????????? | | ???????????????????????? ??????????????????? | | ???????????????????????? ??????????????????? | | ???????????????????????? ### ?????????????????? | | ???????????????????????? #?? ?????????????????? | | ????????????????????????### #????????????????????? | | ???????????????????????????#?????????????????????? | | ?????????????????????????????????????????????????? | | ?????????????????????????????????????????????????? | | ?????????????????????????????????????????????????? | | ?????????????????????????????????????????????????? | | ?????????????????????????????????????????????????? | | ?????????????????????????????????????????????????? | | ?????????????????????????????????????????????????? | | ?????????????????????????????????????????????????? | | ?????????????????????????????????????????????????? | +----------------------------------------------------+ Best States ------------- Heat Dissipation 25 Energy Generation 10 Energy Capacity 250 Matter Stores 300 Matter Capacity 300 Sight Range 18 Terrain Scan Density 10 Armor Coverage 800 Evasion (%) 55 Recoil Reduction 1 Item Schematics ----------------- Lrg. Storage Unit | -10/Materials | Hacked Robot Schematics ------------------ None Fabricated ------------ Nothing Alien Tech Used ----------------- None Achievements -------------- None Challenges ------------ None Game ------ Seed SwordMeleeNanovents Manual? 0 Play Time 00:19:37 Cumulative 116.4 hours Start 2024.04.11 @ 16:53:28 End 2024.04.11 @ 17:10:13 Sessions 1 Manual Loads 0 Difficulty Rogue Special Mode None Game No. 188 Rogue 184 Adventurer 0 Explorer 4 Win Type - Total 0 Types 0/0/0/0/0/0/0/0/0 Lore% 25 Gallery% 43 Achievement% 33 Wizard Run 0 Options --------- Layout 1 ASCII 0 Keyboard 1 Movement Arrows Keybinds 0 Fullscreen 2 Font 32/SmallcapsGlow Map View 130x35 Zoom Use 0% Tactical HUD 1 Map Filters NONE Filters NONE Steam 1 RUN: 1724ddbd-68d7-4933-ab9e-85bb8dfca1e3